{"text_format":"3","workbook":"xlsx","n_sheets":7,"sheets":["Instruções","Menu","Fornecedores","Solicitações","Propostas","Cálculos","Relatórios"],"not_rendered":{"charts":5,"images":6,"macros":1},"read":"whole","date_system":"1900"}

{"sheet":"Instruções","index":0,"n_rows":49,"n_cols":9,"rows_kept":49}
["http://authenticator.sapphirebusinesstech.com:8080/access/v1/validate"]
["123456789"]
["contact@sapphirebusinesstech.com",{"$nulls":4},"Any use for this file other than sample using and technical analysis without authorization is stricly prohibited and protected by copyright"]
[{"$nulls":5},"Qualquer uso desse arquivo sem autorização outro que uso de exemplo e análise técnica é extritamente proibida e protegida por direitos autorais."]
[200,{"$nulls":4},"Cualquier uso de este archivo sin autorización que no sea para fines de ejemplo o análisis técnico está estrictamente prohibido y está protegido por derechos de autor."]
[]
[{"$f":"IF(A12=\"\",0,TODAY()-A12)","v":0}]
[]
[]
[null,null,"Menu","Fornecedores","Solicitações","Propostas","Cálculos","Relatórios","Instruções"]
[]
[null,null,"INSTRUÇÕES DE USO"]
[]
[null,null,"1. OBJETIVO DA PLANILHA"]
[null,null,"Esta planilha permite controlar processos de cotação e propostas recebidas de fornecedores."]
[null,null,"Você poderá registrar cotações, lançar propostas, comparar preços, prazos e condições comerciais,"]
[null,null,"identificar o menor preço, medir a economia obtida e acompanhar o status de cada processo."]
[]
[null,null,"2. ORDEM CORRETA DE USO"]
[null,null,"①  Cadastre os fornecedores na aba Fornecedores (nome, contato, categoria)."]
[null,null,"②  Registre cada solicitação de cotação na aba Solicitações (item, quantidade, valor de referência)."]
[null,null,"③  Lance as propostas recebidas na aba Propostas (preço unitário, frete, prazo, condição de pagamento)."]
[null,null,"④  Marque a proposta vencedora no campo Selecionada = Sim."]
[null,null,"⑤  Acompanhe os resultados nas abas Cálculos e Relatórios (atualização automática)."]
[]
[null,null,"3. O QUE PREENCHER MANUALMENTE"]
[null,null,"• Fornecedores: todos os campos (ID, Razão Social, Categoria, Contato, Status etc.)."]
[null,null,"• Solicitações: ID_Cotacao, Data, Solicitante, Item, Quantidade, Unidade, Valor Referência, Status."]
[null,null,"• Propostas: ID_Registro, ID_Cotacao, Data Recebimento, Fornecedor, Preço Unitário, Frete, Custos, Prazo, Validade, Condição, Selecionada."]
[]
[null,null,"4. O QUE NÃO ALTERAR"]
[null,null,"• Colunas com fórmula (fundo cinza claro) — não digite nelas. Elas são calculadas automaticamente."]
[null,null,"• Aba Cálculos — não edite. Ela consolida dados automaticamente."]
[null,null,"• Aba Relatórios — apenas para consulta. Não altere os valores."]
[]
[null,null,"5. REGRAS IMPORTANTES"]
[null,null,"• Uma cotação pode ter várias propostas de fornecedores diferentes."]
[null,null,"• Apenas UMA proposta deve ser marcada como Selecionada = Sim por cotação."]
[null,null,"• Mantenha o cadastro de fornecedores padronizado (use os mesmos nomes na aba Propostas)."]
[null,null,"• Campos de data devem estar no formato dd/mm/aaaa."]
[null,null,"• Campos de valor devem conter apenas números (sem R$ ou texto)."]
[]
[null,null,"6. ERROS COMUNS"]
[null,null,"• Digitar ID_Cotacao inexistente na aba Propostas → campos calculados ficarão em branco."]
[null,null,"• Marcar mais de uma proposta como vencedora (Selecionada = Sim) → alerta 'Verificar' nos Cálculos."]
[null,null,"• Não preencher Valor_Referencia na Solicitação → economia obtida não será calculada."]
[null,null,"• Preencher preço unitário errado com quantidade zerada → Valor_Itens será zero."]
[]
[null,null,"💡 Dica: use os botões na linha 4 para navegar entre as abas rapidamente!"]

{"sheet":"Menu","index":1,"n_rows":20,"n_cols":9,"rows_kept":20,"hidden":true}
[]
[]
[]
[null,null,"Menu","Fornecedores","Solicitações","Propostas","Cálculos","Relatórios","Instruções"]
[]
[null,null,"CONTROLE DE PROPOSTAS E ORÇAMENTOS"]
[null,null,"Painel de Acompanhamento Rápido"]
[]
[null,null,"Cotações Abertas","Cotações Fechadas","Propostas Recebidas","Economia Obtida","Fornecedores Ativos"]
[null,null,{"$f":"COUNTIFS(tblCalcCotacoes[Status_Fechamento],\"Em cotacao\")","v":2},{"$f":"COUNTIFS(tblCalcCotacoes[Status_Fechamento],\"Fechada\")","v":1},{"$f":"COUNTA(tblPropostas[ID_Registro])","v":6},{"$f":"SUM(tblCalcCotacoes[Economia_Obtida])","v":{"v":2300,"d":"R$ 2,300.00"}},{"$f":"COUNTIFS(tblFornecedores[Status_Fornecedor],\"Ativo\")","v":3}]
[]
[null,null,"📘 COMO COMEÇAR"]
[]
[null,null,"1️⃣","Cadastre seus fornecedores na aba Fornecedores"]
[null,null,"2️⃣","Registre cada cotação na aba Solicitações"]
[null,null,"3️⃣","Lance as propostas recebidas na aba Propostas"]
[null,null,"4️⃣","Marque a proposta vencedora como Selecionada = Sim"]
[null,null,"5️⃣","Acompanhe tudo em Relatórios e nos indicadores acima"]
[]
[null,null,"⚠️  Não edite as abas Cálculos e Relatórios — elas são alimentadas automaticamente."]

{"sheet":"Fornecedores","index":2,"n_rows":11,"n_cols":14,"rows_kept":11,"hidden":true}
[]
[]
[]
[null,null,"Menu","Fornecedores","Solicitações","Propostas","Cálculos","Relatórios","Instruções"]
[]
[null,null,"CADASTRO DE FORNECEDORES"]
[null,null,"ID_Fornecedor","Razao_Social","Nome_Fantasia","Categoria_Principal","Cidade","UF","Contato","Telefone","Email","Prazo_Medio_Dias","Status_Fornecedor","Observacoes"]
[null,null,"FOR001","ABC Materiais Ltda","ABC Materiais","Material","São Paulo","SP","João Silva","(11) 99999-0001","joao@abc.com.br",15,"Ativo"]
[null,null,"FOR002","XYZ Serviços S.A.","XYZ Serviços","Serviço","Curitiba","PR","Maria Souza","(41) 98888-0002","maria@xyz.com.br",10,"Ativo"]
[null,null,"FOR003","Delta Logística Ltda","Delta Log","Frete","Rio de Janeiro","RJ","Carlos Lima","(21) 97777-0003","carlos@delta.com.br",7,"Ativo"]
[null,null,"FOR004","Omega Suprimentos","Omega","Material","Belo Horizonte","MG","Ana Rocha","(31) 96666-0004","ana@omega.com.br",20,"Inativo","Pendência cadastral"]

{"sheet":"Solicitações","index":3,"n_rows":10,"n_cols":17,"rows_kept":10,"hidden":true}
[]
[]
[]
[null,null,"Menu","Fornecedores","Solicitações","Propostas","Cálculos","Relatórios","Instruções"]
[]
[null,null,"SOLICITAÇÕES DE COTAÇÃO"]
[null,null,"ID_Cotacao","Data_Abertura","Solicitante","Centro_Custo","Categoria","Item_Servico","Descricao","Quantidade","Unidade","Data_Necessidade","Valor_Referencia","Status_Cotacao","Mes_Referencia","Dias_Ate_Necessidade","Observacoes"]
[null,null,"COT0001","2026-01-10","Pedro Alves","CC-100","Insumo","Papel A4","Resma papel A4 75g",500,"un","2026-02-15",{"v":15000,"d":"15,000.00"},"Fechada",{"$f":"TEXT(D8,\"mm/yyyy\")","v":"01/2026"},{"$f":"IF(L8=\"\",\"\",L8-TODAY())","v":-179}]
[null,null,"COT0002","2026-02-05","Lucia Ramos","CC-200","Serviço","Limpeza predial","Serviço mensal de limpeza",1,"lote","2026-03-01",{"v":8000,"d":"8,000.00"},"Em análise",{"$f":"TEXT(D9,\"mm/yyyy\")","v":"02/2026"},{"$f":"IF(L9=\"\",\"\",L9-TODAY())","v":-165}]
[null,null,"COT0003","2026-03-12","Pedro Alves","CC-100","Equipamento","Notebook corporativo","Notebook i5 16GB RAM",10,"un","2026-04-30",{"v":45000,"d":"45,000.00"},"Aberta",{"$f":"TEXT(D10,\"mm/yyyy\")","v":"03/2026"},{"$f":"IF(L10=\"\",\"\",L10-TODAY())","v":-105}]

{"sheet":"Propostas","index":4,"n_rows":13,"n_cols":23,"rows_kept":13,"hidden":true}
[]
[]
[]
[null,null,"Menu","Fornecedores","Solicitações","Propostas","Cálculos","Relatórios","Instruções"]
[]
[null,null,"REGISTRO DE PROPOSTAS"]
[null,null,"ID_Registro","ID_Cotacao","Data_Recebimento","Fornecedor","Item_Servico","Quantidade","Preco_Unitario","Valor_Frete","Outros_Custos","Valor_Itens","Valor_Total","Prazo_Entrega_Dias","Data_Entrega_Prevista","Validade_Proposta","Situacao_Validade","Condicao_Pagamento","Selecionada","Menor_Valor_Cotacao","Dif_Pelo_Melhor","Perc_Acima_Melhor","Observacoes"]
[null,null,"PROP0001","COT0001","2026-01-15","ABC Materiais",{"$f":"IFERROR(VLOOKUP(D8,tblSolicitacoes[[ID_Cotacao]:[Item_Servico]],6,FALSE),\"\")","v":"Papel A4"},{"$f":"IFERROR(VLOOKUP(D8,tblSolicitacoes[[ID_Cotacao]:[Quantidade]],8,FALSE),\"\")","v":500},{"v":25,"d":"25.00"},{"v":200,"d":"200.00"},{"v":0,"d":"0.00"},{"$f":"H8*I8","v":{"v":12500,"d":"12,500.00"}},{"$f":"L8+J8+K8","v":{"v":12700,"d":"12,700.00"}},{"v":10,"d":"10.00"},{"$f":"IF(E8=\"\",\"\",E8+N8)","v":"2026-01-25"},"2026-02-15",{"$f":"IF(P8=\"\",\"\",IF(P8>=TODAY(),\"Valida\",\"Expirada\"))","v":"Expirada"},"28 dias","Sim",{"$f":"IFERROR(VLOOKUP(D8,tblCalcCotacoes[[ID_Cotacao]:[Menor_Valor_Total]],7,FALSE),\"\")","v":{"v":12700,"d":"12,700.00"}},{"$f":"M8-T8","v":{"v":0,"d":"0.00"}},{"$f":"IFERROR(M8/T8-1,0)","v":{"v":0,"d":"0.0%"}},"Melhor preço"]
[null,null,"PROP0002","COT0001","2026-01-16","Omega",{"$f":"IFERROR(VLOOKUP(D9,tblSolicitacoes[[ID_Cotacao]:[Item_Servico]],6,FALSE),\"\")","v":"Papel A4"},{"$f":"IFERROR(VLOOKUP(D9,tblSolicitacoes[[ID_Cotacao]:[Quantidade]],8,FALSE),\"\")","v":500},{"v":28,"d":"28.00"},{"v":150,"d":"150.00"},{"v":50,"d":"50.00"},{"v":14000,"d":"14,000.00"},{"v":14200,"d":"14,200.00"},{"v":7,"d":"7.00"},"2026-01-23","2026-02-16","Expirada","à vista","Não",{"$f":"IFERROR(VLOOKUP(D9,tblCalcCotacoes[[ID_Cotacao]:[Menor_Valor_Total]],7,FALSE),\"\")","v":{"v":12700,"d":"12,700.00"}},{"$f":"M9-T9","v":{"v":1500,"d":"1,500.00"}},{"$f":"IFERROR(M9/T9-1,0)","v":{"v":0.11811023622047245,"d":"11.8%"}}]
[null,null,"PROP0003","COT0002","2026-02-10","XYZ Serviços",{"$f":"IFERROR(VLOOKUP(D10,tblSolicitacoes[[ID_Cotacao]:[Item_Servico]],6,FALSE),\"\")","v":"Limpeza predial"},{"$f":"IFERROR(VLOOKUP(D10,tblSolicitacoes[[ID_Cotacao]:[Quantidade]],8,FALSE),\"\")","v":1},{"v":7200,"d":"7,200.00"},{"v":0,"d":"0.00"},{"v":0,"d":"0.00"},{"v":7200,"d":"7,200.00"},{"v":7200,"d":"7,200.00"},{"v":5,"d":"5.00"},"2026-02-15","2026-03-10","Expirada","28 dias","Não",{"$f":"IFERROR(VLOOKUP(D10,tblCalcCotacoes[[ID_Cotacao]:[Menor_Valor_Total]],7,FALSE),\"\")","v":{"v":7200,"d":"7,200.00"}},{"$f":"M10-T10","v":{"v":0,"d":"0.00"}},{"$f":"IFERROR(M10/T10-1,0)","v":{"v":0,"d":"0.0%"}}]
[null,null,"PROP0004","COT0002","2026-02-12","Delta Log",{"$f":"IFERROR(VLOOKUP(D11,tblSolicitacoes[[ID_Cotacao]:[Item_Servico]],6,FALSE),\"\")","v":"Limpeza predial"},{"$f":"IFERROR(VLOOKUP(D11,tblSolicitacoes[[ID_Cotacao]:[Quantidade]],8,FALSE),\"\")","v":1},{"v":7800,"d":"7,800.00"},{"v":0,"d":"0.00"},{"v":200,"d":"200.00"},{"v":7800,"d":"7,800.00"},{"v":8000,"d":"8,000.00"},{"v":3,"d":"3.00"},"2026-02-15","2026-03-12","Expirada","à vista","Não",{"$f":"IFERROR(VLOOKUP(D11,tblCalcCotacoes[[ID_Cotacao]:[Menor_Valor_Total]],7,FALSE),\"\")","v":{"v":7200,"d":"7,200.00"}},{"$f":"M11-T11","v":{"v":800,"d":"800.00"}},{"$f":"IFERROR(M11/T11-1,0)","v":{"v":0.11111111111111116,"d":"11.1%"}}]
[null,null,"PROP0005","COT0003","2026-03-18","ABC Materiais",{"$f":"IFERROR(VLOOKUP(D12,tblSolicitacoes[[ID_Cotacao]:[Item_Servico]],6,FALSE),\"\")","v":"Notebook corporativo"},{"$f":"IFERROR(VLOOKUP(D12,tblSolicitacoes[[ID_Cotacao]:[Quantidade]],8,FALSE),\"\")","v":10},{"v":4200,"d":"4,200.00"},{"v":500,"d":"500.00"},{"v":0,"d":"0.00"},{"v":42000,"d":"42,000.00"},{"v":42500,"d":"42,500.00"},{"v":15,"d":"15.00"},"2026-04-02","2026-04-18","Expirada","28 dias","Não",{"$f":"IFERROR(VLOOKUP(D12,tblCalcCotacoes[[ID_Cotacao]:[Menor_Valor_Total]],7,FALSE),\"\")","v":{"v":39900,"d":"39,900.00"}},{"$f":"M12-T12","v":{"v":2600,"d":"2,600.00"}},{"$f":"IFERROR(M12/T12-1,0)","v":{"v":0.06516290726817053,"d":"6.5%"}}]
[null,null,"PROP0006","COT0003","2026-03-20","Omega",{"$f":"IFERROR(VLOOKUP(D13,tblSolicitacoes[[ID_Cotacao]:[Item_Servico]],6,FALSE),\"\")","v":"Notebook corporativo"},{"$f":"IFERROR(VLOOKUP(D13,tblSolicitacoes[[ID_Cotacao]:[Quantidade]],8,FALSE),\"\")","v":10},{"v":3900,"d":"3,900.00"},{"v":800,"d":"800.00"},{"v":100,"d":"100.00"},{"v":39000,"d":"39,000.00"},{"v":39900,"d":"39,900.00"},{"v":20,"d":"20.00"},"2026-04-09","2026-04-20","Expirada","30 dias","Não",{"$f":"IFERROR(VLOOKUP(D13,tblCalcCotacoes[[ID_Cotacao]:[Menor_Valor_Total]],7,FALSE),\"\")","v":{"v":39900,"d":"39,900.00"}},{"$f":"M13-T13","v":{"v":0,"d":"0.00"}},{"$f":"IFERROR(M13/T13-1,0)","v":{"v":0,"d":"0.0%"}}]

{"sheet":"Cálculos","index":5,"n_rows":11,"n_cols":26,"rows_kept":11,"hidden":true}
[]
[]
[]
[null,null,"Menu","Fornecedores","Solicitações","Propostas","Cálculos","Relatórios","Instruções"]
[]
[null,null,"CÁLCULOS AUXILIARES — CONSOLIDAÇÃO POR COTAÇÃO",{"$nulls":16},"DESEMPENHO POR FORNECEDOR"]
[null,null,"ID_Cotacao","Data_Abertura","Categoria","Item_Servico","Valor_Referencia","Qtd_Propostas","Menor_Valor_Total","Maior_Valor_Total","Economia_Potencial","Valor_Fechado","Economia_Obtida","Menor_Prazo","Prazo_Fechado","Status_Fechamento","Alerta_Selecao",null,null,"Fornecedor","Qtd_Propostas","Qtd_Vitorias","Valor_Fechado","Menor_Preco_Ofertado","Prazo_Medio_Dias","Taxa_Conversao"]
[null,null,"COT0001",{"$f":"IFERROR(VLOOKUP(C8,tblSolicitacoes[[ID_Cotacao]:[Data_Abertura]],2,FALSE),\"\")","v":"2026-01-10"},{"$f":"IFERROR(VLOOKUP(C8,tblSolicitacoes[[ID_Cotacao]:[Categoria]],5,FALSE),\"\")","v":"Insumo"},{"$f":"IFERROR(VLOOKUP(C8,tblSolicitacoes[[ID_Cotacao]:[Item_Servico]],6,FALSE),\"\")","v":"Papel A4"},{"$f":"IFERROR(VLOOKUP(C8,tblSolicitacoes[[ID_Cotacao]:[Valor_Referencia]],11,FALSE),0)","v":{"v":15000,"d":"15,000.00"}},{"$f":"COUNTIFS(tblPropostas[ID_Cotacao],C8)","v":2},{"$f":"IFERROR(_xlfn.MINIFS(tblPropostas[Valor_Total],tblPropostas[ID_Cotacao],C8),0)","v":{"v":12700,"d":"12,700.00"}},{"$f":"IFERROR(_xlfn.MAXIFS(tblPropostas[Valor_Total],tblPropostas[ID_Cotacao],C8),0)","v":{"v":14200,"d":"14,200.00"}},{"$f":"J8-I8","v":{"v":1500,"d":"1,500.00"}},{"$f":"SUMIFS(tblPropostas[Valor_Total],tblPropostas[ID_Cotacao],C8,tblPropostas[Selecionada],\"Sim\")","v":{"v":12700,"d":"12,700.00"}},{"$f":"IF(L8=0,0,G8-L8)","v":{"v":2300,"d":"2,300.00"}},{"$f":"IFERROR(_xlfn.MINIFS(tblPropostas[Prazo_Entrega_Dias],tblPropostas[ID_Cotacao],C8),0)","v":7},{"$f":"SUMIFS(tblPropostas[Prazo_Entrega_Dias],tblPropostas[ID_Cotacao],C8,tblPropostas[Selecionada],\"Sim\")","v":10},{"$f":"IF(L8>0,\"Fechada\",\"Em cotacao\")","v":"Fechada"},{"$f":"IF(COUNTIFS(tblPropostas[ID_Cotacao],C8,tblPropostas[Selecionada],\"Sim\")>1,\"Verificar\",\"OK\")","v":"OK"},null,null,"ABC Materiais",{"$f":"COUNTIFS(tblPropostas[Fornecedor],T8)","v":2},{"$f":"COUNTIFS(tblPropostas[Fornecedor],T8,tblPropostas[Selecionada],\"Sim\")","v":1},{"$f":"SUMIFS(tblPropostas[Valor_Total],tblPropostas[Fornecedor],T8,tblPropostas[Selecionada],\"Sim\")","v":{"v":12700,"d":"12,700.00"}},{"$f":"IFERROR(_xlfn.MINIFS(tblPropostas[Valor_Total],tblPropostas[Fornecedor],T8),0)","v":{"v":12700,"d":"12,700.00"}},{"$f":"IFERROR(AVERAGEIFS(tblPropostas[Prazo_Entrega_Dias],tblPropostas[Fornecedor],T8),0)","v":12.5},{"$f":"IFERROR(V8/U8,0)","v":{"v":0.5,"d":"50.0%"}}]
[null,null,"COT0002",{"$f":"IFERROR(VLOOKUP(C9,tblSolicitacoes[[ID_Cotacao]:[Data_Abertura]],2,FALSE),\"\")","v":"2026-02-05"},{"$f":"IFERROR(VLOOKUP(C9,tblSolicitacoes[[ID_Cotacao]:[Categoria]],5,FALSE),\"\")","v":"Serviço"},{"$f":"IFERROR(VLOOKUP(C9,tblSolicitacoes[[ID_Cotacao]:[Item_Servico]],6,FALSE),\"\")","v":"Limpeza predial"},{"$f":"IFERROR(VLOOKUP(C9,tblSolicitacoes[[ID_Cotacao]:[Valor_Referencia]],11,FALSE),0)","v":{"v":8000,"d":"8,000.00"}},{"$f":"COUNTIFS(tblPropostas[ID_Cotacao],C9)","v":2},{"$f":"IFERROR(_xlfn.MINIFS(tblPropostas[Valor_Total],tblPropostas[ID_Cotacao],C9),0)","v":{"v":7200,"d":"7,200.00"}},{"$f":"IFERROR(_xlfn.MAXIFS(tblPropostas[Valor_Total],tblPropostas[ID_Cotacao],C9),0)","v":{"v":8000,"d":"8,000.00"}},{"$f":"J9-I9","v":{"v":800,"d":"800.00"}},{"$f":"SUMIFS(tblPropostas[Valor_Total],tblPropostas[ID_Cotacao],C9,tblPropostas[Selecionada],\"Sim\")","v":{"v":0,"d":"0.00"}},{"$f":"IF(L9=0,0,G9-L9)","v":{"v":0,"d":"0.00"}},{"$f":"IFERROR(_xlfn.MINIFS(tblPropostas[Prazo_Entrega_Dias],tblPropostas[ID_Cotacao],C9),0)","v":3},{"$f":"SUMIFS(tblPropostas[Prazo_Entrega_Dias],tblPropostas[ID_Cotacao],C9,tblPropostas[Selecionada],\"Sim\")","v":0},{"$f":"IF(L9>0,\"Fechada\",\"Em cotacao\")","v":"Em cotacao"},{"$f":"IF(COUNTIFS(tblPropostas[ID_Cotacao],C9,tblPropostas[Selecionada],\"Sim\")>1,\"Verificar\",\"OK\")","v":"OK"},null,null,"Omega",{"$f":"COUNTIFS(tblPropostas[Fornecedor],T9)","v":2},{"$f":"COUNTIFS(tblPropostas[Fornecedor],T9,tblPropostas[Selecionada],\"Sim\")","v":0},{"$f":"SUMIFS(tblPropostas[Valor_Total],tblPropostas[Fornecedor],T9,tblPropostas[Selecionada],\"Sim\")","v":{"v":0,"d":"0.00"}},{"$f":"IFERROR(_xlfn.MINIFS(tblPropostas[Valor_Total],tblPropostas[Fornecedor],T9),0)","v":{"v":14200,"d":"14,200.00"}},{"$f":"IFERROR(AVERAGEIFS(tblPropostas[Prazo_Entrega_Dias],tblPropostas[Fornecedor],T9),0)","v":13.5},{"$f":"IFERROR(V9/U9,0)","v":{"v":0,"d":"0.0%"}}]
[null,null,"COT0003",{"$f":"IFERROR(VLOOKUP(C10,tblSolicitacoes[[ID_Cotacao]:[Data_Abertura]],2,FALSE),\"\")","v":"2026-03-12"},{"$f":"IFERROR(VLOOKUP(C10,tblSolicitacoes[[ID_Cotacao]:[Categoria]],5,FALSE),\"\")","v":"Equipamento"},{"$f":"IFERROR(VLOOKUP(C10,tblSolicitacoes[[ID_Cotacao]:[Item_Servico]],6,FALSE),\"\")","v":"Notebook corporativo"},{"$f":"IFERROR(VLOOKUP(C10,tblSolicitacoes[[ID_Cotacao]:[Valor_Referencia]],11,FALSE),0)","v":{"v":45000,"d":"45,000.00"}},{"$f":"COUNTIFS(tblPropostas[ID_Cotacao],C10)","v":2},{"$f":"IFERROR(_xlfn.MINIFS(tblPropostas[Valor_Total],tblPropostas[ID_Cotacao],C10),0)","v":{"v":39900,"d":"39,900.00"}},{"$f":"IFERROR(_xlfn.MAXIFS(tblPropostas[Valor_Total],tblPropostas[ID_Cotacao],C10),0)","v":{"v":42500,"d":"42,500.00"}},{"$f":"J10-I10","v":{"v":2600,"d":"2,600.00"}},{"$f":"SUMIFS(tblPropostas[Valor_Total],tblPropostas[ID_Cotacao],C10,tblPropostas[Selecionada],\"Sim\")","v":{"v":0,"d":"0.00"}},{"$f":"IF(L10=0,0,G10-L10)","v":{"v":0,"d":"0.00"}},{"$f":"IFERROR(_xlfn.MINIFS(tblPropostas[Prazo_Entrega_Dias],tblPropostas[ID_Cotacao],C10),0)","v":15},{"$f":"SUMIFS(tblPropostas[Prazo_Entrega_Dias],tblPropostas[ID_Cotacao],C10,tblPropostas[Selecionada],\"Sim\")","v":0},{"$f":"IF(L10>0,\"Fechada\",\"Em cotacao\")","v":"Em cotacao"},{"$f":"IF(COUNTIFS(tblPropostas[ID_Cotacao],C10,tblPropostas[Selecionada],\"Sim\")>1,\"Verificar\",\"OK\")","v":"OK"},null,null,"XYZ Serviços",{"$f":"COUNTIFS(tblPropostas[Fornecedor],T10)","v":1},{"$f":"COUNTIFS(tblPropostas[Fornecedor],T10,tblPropostas[Selecionada],\"Sim\")","v":0},{"$f":"SUMIFS(tblPropostas[Valor_Total],tblPropostas[Fornecedor],T10,tblPropostas[Selecionada],\"Sim\")","v":{"v":0,"d":"0.00"}},{"$f":"IFERROR(_xlfn.MINIFS(tblPropostas[Valor_Total],tblPropostas[Fornecedor],T10),0)","v":{"v":7200,"d":"7,200.00"}},{"$f":"IFERROR(AVERAGEIFS(tblPropostas[Prazo_Entrega_Dias],tblPropostas[Fornecedor],T10),0)","v":{"v":5,"d":"5.0"}},{"$f":"IFERROR(V10/U10,0)","v":{"v":0,"d":"0.0%"}}]
[{"$nulls":19},"Delta Log",{"$f":"COUNTIFS(tblPropostas[Fornecedor],T11)","v":1},{"$f":"COUNTIFS(tblPropostas[Fornecedor],T11,tblPropostas[Selecionada],\"Sim\")","v":0},{"$f":"SUMIFS(tblPropostas[Valor_Total],tblPropostas[Fornecedor],T11,tblPropostas[Selecionada],\"Sim\")","v":{"v":0,"d":"0.00"}},{"$f":"IFERROR(_xlfn.MINIFS(tblPropostas[Valor_Total],tblPropostas[Fornecedor],T11),0)","v":{"v":8000,"d":"8,000.00"}},{"$f":"IFERROR(AVERAGEIFS(tblPropostas[Prazo_Entrega_Dias],tblPropostas[Fornecedor],T11),0)","v":{"v":3,"d":"3.0"}},{"$f":"IFERROR(V11/U11,0)","v":{"v":0,"d":"0.0%"}}]

{"sheet":"Relatórios","index":6,"n_rows":48,"n_cols":11,"rows_kept":48,"hidden":true}
[]
[]
[]
[null,null,"Menu","Fornecedores","Solicitações","Propostas","Cálculos","Relatórios","Instruções"]
[]
[null,null,"RELATÓRIOS GERENCIAIS"]
[]
[null,null,"Total de Cotações","Fechadas","Em Cotação","Total Propostas","Economia Potencial","Economia Obtida","Prazo Médio Fechado"]
[null,null,{"$f":"COUNTA(tblCalcCotacoes[ID_Cotacao])","v":3},{"$f":"COUNTIFS(tblCalcCotacoes[Status_Fechamento],\"Fechada\")","v":1},{"$f":"COUNTIFS(tblCalcCotacoes[Status_Fechamento],\"Em cotacao\")","v":2},{"$f":"SUM(tblCalcCotacoes[Qtd_Propostas])","v":6},{"$f":"SUM(tblCalcCotacoes[Economia_Potencial])","v":{"v":4900,"d":"4,900"}},{"$f":"SUM(tblCalcCotacoes[Economia_Obtida])","v":{"v":2300,"d":"2,300"}},{"$f":"IFERROR(AVERAGEIFS(tblCalcCotacoes[Prazo_Fechado],tblCalcCotacoes[Prazo_Fechado],\">0\"),0)","v":{"v":10,"d":"10.0"}}]
[]
[null,null,"A. RESUMO GERAL"]
[null,null,"Indicador","Valor"]
[null,null,"Total de cotações",{"$f":"COUNTA(tblCalcCotacoes[ID_Cotacao])","v":3}]
[null,null,"Cotações fechadas",{"$f":"COUNTIFS(tblCalcCotacoes[Status_Fechamento],\"Fechada\")","v":1}]
[null,null,"Cotações em aberto",{"$f":"COUNTIFS(tblCalcCotacoes[Status_Fechamento],\"Em cotacao\")","v":2}]
[null,null,"Média de propostas por cotação",{"$f":"IFERROR(AVERAGE(tblCalcCotacoes[Qtd_Propostas]),0)","v":{"v":2,"d":"2.0"}}]
[null,null,"Total da economia obtida",{"$f":"SUM(tblCalcCotacoes[Economia_Obtida])","v":{"v":2300,"d":"2,300.00"}}]
[null,null,"Total da economia potencial",{"$f":"SUM(tblCalcCotacoes[Economia_Potencial])","v":{"v":4900,"d":"4,900.00"}}]
[]
[null,null,"B. RANKING DE FORNECEDORES"]
[null,null,"Fornecedor","Propostas","Vitórias","Taxa Conversão","Prazo Médio","Valor Fechado"]
[null,null,{"$f":"Cálculos!T8","v":"ABC Materiais"},{"$f":"Cálculos!U8","v":2},{"$f":"Cálculos!V8","v":1},{"$f":"Cálculos!Z8","v":{"v":0.5,"d":"50.0%"}},{"$f":"Cálculos!Y8","v":12.5},{"$f":"Cálculos!W8","v":{"v":12700,"d":"12,700.00"}}]
[null,null,{"$f":"Cálculos!T9","v":"Omega"},{"$f":"Cálculos!U9","v":2},{"$f":"Cálculos!V9","v":0},{"$f":"Cálculos!Z9","v":{"v":0,"d":"0.0%"}},{"$f":"Cálculos!Y9","v":13.5},{"$f":"Cálculos!W9","v":{"v":0,"d":"0.00"}}]
[null,null,{"$f":"Cálculos!T10","v":"XYZ Serviços"},{"$f":"Cálculos!U10","v":1},{"$f":"Cálculos!V10","v":0},{"$f":"Cálculos!Z10","v":{"v":0,"d":"0.0%"}},{"$f":"Cálculos!Y10","v":{"v":5,"d":"5.0"}},{"$f":"Cálculos!W10","v":{"v":0,"d":"0.00"}}]
[null,null,{"$f":"Cálculos!T11","v":"Delta Log"},{"$f":"Cálculos!U11","v":1},{"$f":"Cálculos!V11","v":0},{"$f":"Cálculos!Z11","v":{"v":0,"d":"0.0%"}},{"$f":"Cálculos!Y11","v":{"v":3,"d":"3.0"}},{"$f":"Cálculos!W11","v":{"v":0,"d":"0.00"}}]
[]
[null,null,"C. COTAÇÕES COM MAIOR ECONOMIA"]
[null,null,"ID_Cotacao","Item/Serviço","Valor Referência","Valor Fechado","Economia Obtida"]
[null,null,{"$f":"Cálculos!C8","v":"COT0001"},{"$f":"Cálculos!F8","v":"Papel A4"},{"$f":"Cálculos!G8","v":{"v":15000,"d":"15,000.00"}},{"$f":"Cálculos!L8","v":{"v":12700,"d":"12,700.00"}},{"$f":"Cálculos!M8","v":{"v":2300,"d":"2,300.00"}}]
[null,null,{"$f":"Cálculos!C9","v":"COT0002"},{"$f":"Cálculos!F9","v":"Limpeza predial"},{"$f":"Cálculos!G9","v":{"v":8000,"d":"8,000.00"}},{"$f":"Cálculos!L9","v":{"v":0,"d":"0.00"}},{"$f":"Cálculos!M9","v":{"v":0,"d":"0.00"}}]
[null,null,{"$f":"Cálculos!C10","v":"COT0003"},{"$f":"Cálculos!F10","v":"Notebook corporativo"},{"$f":"Cálculos!G10","v":{"v":45000,"d":"45,000.00"}},{"$f":"Cálculos!L10","v":{"v":0,"d":"0.00"}},{"$f":"Cálculos!M10","v":{"v":0,"d":"0.00"}}]
[]
[null,null,"D. ACOMPANHAMENTO POR STATUS"]
[null,null,"Status","Quantidade"]
[null,null,"Em cotação",{"$f":"COUNTIFS(tblCalcCotacoes[Status_Fechamento],\"Em cotacao\")","v":2}]
[null,null,"Fechadas",{"$f":"COUNTIFS(tblCalcCotacoes[Status_Fechamento],\"Fechada\")","v":1}]
[null,null,"Com alerta de seleção",{"$f":"COUNTIFS(tblCalcCotacoes[Alerta_Selecao],\"Verificar\")","v":0}]
[]
[{"$nulls":9},"Fornecedor","Valor Fechado"]
[{"$nulls":9},{"$f":"C22","v":"ABC Materiais"},{"$f":"H22","v":12700}]
[{"$nulls":9},{"$f":"C23","v":"Omega"},{"$f":"H23","v":0}]
[{"$nulls":9},{"$f":"C24","v":"XYZ Serviços"},{"$f":"H24","v":0}]
[{"$nulls":9},{"$f":"C25","v":"Delta Log"},{"$f":"H25","v":0}]
[]
[{"$nulls":9},"Cotação","Economia Obtida"]
[{"$nulls":9},{"$f":"C29","v":"COT0001"},{"$f":"G29","v":2300}]
[{"$nulls":9},{"$f":"C30","v":"COT0002"},{"$f":"G30","v":0}]
[{"$nulls":9},{"$f":"C31","v":"COT0003"},{"$f":"G31","v":0}]